Workbook

Sheet integral-1
B1: Contoh Perthitungan Integral dengan Metode Trapesium
B3: Akan dihitung integral dari fungsi:
B6: mulai a=0 sampai b=0,8 , dengan 16 segmen (n=16)
B8: x | C8: f(x)
A9: a | B9: 0 | C9: =0.2+25*B9-200*B9^2+675*B9^3-900*B9^4+400*B9^5 -> 0.2
B10: =+B9+0.05 -> 0.05 | C10: =0.2+25*B10-200*B10^2+675*B10^3-900*B10^4+400*B10^5 -> 1.028875
B11: =+B10+0.05 -> 0.1 | C11: =0.2+25*B11-200*B11^2+675*B11^3-900*B11^4+400*B11^5 -> 1.289
B12: 0.15 | C12: 1.302875
B13: 0.2 | C13: 1.288
B14: 0.25 | C14: 1.371875
B15: 0.3 | C15: 1.607
B16: 0.35 | C16: 1.985875
B17: 0.4 | C17: 2.456
B18: 0.45 | C18: 2.934875
B19: 0.5 | C19: 3.325
B20: 0.55 | C20: 3.528875 | H20: =SUM(C10:C24) -> 32.395
B21: 0.6 | C21: 3.464
B22: 0.65 | C22: 3.077875
B23: 0.7 | C23: 2.363
B24: 0.75 | C24: 1.371875
A25: b | B25: 0.8 | C25: 0.232
B26: Integral | C26: =(B25-B9)*(C9+2*SUM(C10:C24)+C25)/(2*16) -> 1.63055 | F26: Nilai eksak= | H26: 1.64053334 | M26: error= | N26: =ABS((C26-H26)/H26) -> 0.006085423415
B28: Hasil Metode Trapesoidal

Sheet Integral-2
A1: Contoh Perthitungan Integral dengan Metode Trapesoidal
A3: Akan dihitung integral dari fungsi: | F3: g= | G3: 9.8
F4: m= | G4: 68.1
F6: c= | G6: 12.5
A7: mulai t=0 sampai t=10, dengan 20 segmen
A9: n=20 | D9: n=50
A10: t | B10: f(t) | D10: t | E10: f(t)
A11: 0 | B11: =(1-EXP(-$G$6/$G$4*A11)) -> 0 | D11: 0 | E11: =(1-EXP(-$G$6/$G$4*D11)) -> 0 | H11: n | I11: Numerik-trapezo | J11: Numerik-simpson | K11: eksak | L11: error-trap | M11: error-simp
A12: =+A11+0.5 -> 0.5 | B12: 0.08769124479 | D12: =D11+0.2 -> 0.2 | E12: 0.03604505164 | H12: 20 | I12: =($G$3*$G$4/$G$6)*(10-0)*(B11+2*SUM(B12:B30)+B31)/(2*20) -> 289.2635742 | K12: 289.43515 | L12: =ABS((I12-$K$12)/$K$12) -> 0.0005927952288
A13: =+A12+0.5 -> 1 | B13: 0.1676927352 | D13: =D12+0.2 -> 0.4 | E13: 0.07079085753 | H13: 50 | I13: =($G$3*$G$4/$G$6)*(10-0)*(E11+2*SUM(E12:E60)+E61)/(2*50) -> 289.4076917 | L13: =ABS((I13-$K$12)/$K$12) -> 9.486854484e-05
A14: 1.5 | B14: 0.2406787953 | D14: 0.6 | E14: 0.1042842491
A15: 2 | B15: 0.3072646169 | D15: 0.8 | E15: 0.1365703696
A16: 2.5 | B16: 0.368011445 | D16: 1 | E16: 0.1676927352
A17: 3 | B17: 0.4234313081 | D17: 1.2 | E17: 0.1976932935
A18: 3.5 | B18: 0.4739913344 | D18: 1.4 | E18: 0.2266124802
A19: 4 | B19: 0.520117689 | D19: 1.6 | E19: 0.2544892733
A20: 4.5 | B20: 0.5621991662 | D20: 1.8 | E20: 0.2813612459
A21: 5 | B21: 0.6005904663 | D21: 2 | E21: 0.3072646169
A22: 5.5 | B22: 0.6356151855 | D22: 2.2 | E22: 0.3322342996
A23: 6 | B23: 0.6675685435 | D23: 2.4 | E23: 0.3563039487
A24: 6.5 | B24: 0.6967198717 | D24: 2.6 | E24: 0.3795060061
A25: 7 | B25: 0.7233148837 | D25: 2.8 | E25: 0.4018717442
A26: 7.5 | B26: 0.7475777459 | D26: 3 | E26: 0.4234313081
A27: 8 | B27: 0.7697129676 | D27: 3.2 | E27: 0.4442137563
A28: 8.5 | B28: 0.7899071241 | D28: 3.4 | E28: 0.4642471002
A29: 9 | B29: 0.8083304299 | D29: 3.6 | E29: 0.4835583411
A30: 9.5 | B30: 0.8251381731 | D30: 3.8 | E30: 0.5021735074
A31: 10 | B31: 0.8404720244 | D31: 4 | E31: 0.520117689
A32: sum= | B32: =SUM(B12:B30) -> 10.41555373 | D32: 4.2 | E32: 0.5374150717
D33: 4.4 | E33: 0.5540889693
D34: 4.6 | E34: 0.5701618555
D35: 4.8 | E35: 0.5856553936
D36: 5 | E36: 0.6005904663
D37: 5.2 | E37: 0.6149872036
D38: 5.4 | E38: 0.6288650097
D39: 5.6 | E39: 0.6422425896
D40: 5.8 | E40: 0.6551379739
D41: 6 | E41: 0.6675685435
D42: 6.2 | E42: 0.6795510525
D43: 6.4 | E43: =(1-EXP(-$G$6/$G$4*D43)) -> 0.6911016513
D44: 6.6 | E44: 0.7022359083
D45: 6.8 | E45: 0.7129688303
D46: 7 | E46: 0.7233148837
D47: 7.2 | E47: 0.733288013
D48: 7.4 | E48: 0.7429016603
D49: 7.6 | E49: 0.7521687833
D50: 7.8 | E50: 0.7611018723
D51: 8 | E51: 0.7697129676
D52: 8.2 | E52: 0.7780136756
D53: 8.4 | E53: 0.7860151841
D54: 8.6 | E54: 0.7937282778
D55: 8.8 | E55: 0.8011633527
D56: 9 | E56: 0.8083304299
D57: 9.2 | E57: 0.8152391695
D58: 9.4 | E58: 0.8218988832
D59: 9.6 | E59: 0.8283185471
D60: 9.8 | E60: 0.834506814
D61: 10 | E61: 0.8404720244
D62: sum= | E62: =10*(E11+2*SUM(E12:E60)+E61)/(2*50) -> 5.420594184
